Cogmind - Beta 9.1 @@@ ROGUE MODE // 2019.10.31 @ 21:23:03 // Halloween2019/Abominations Player: fartblaster Result: Destroyed by Lesser Abomination with Small Laser Performance ------------- Evolutions (1) 500 Regions Visited (2) 400 Robots Destroyed (21) 105 Value Destroyed (881) 881 Prototype IDs (1) 20 Alien Tech Used (0) 0 Bonus (0) 0 TOTAL SCORE: 1906 Bonus ------- None Cogmind --------- Core Integrity 0/400 Matter 300/300 Energy 100/100 System Corruption 5% Temperature Cool (6) Location -9/Materials Parts ------- Power (1) Propulsion (2) Utility (3) Small Storage Unit Advanced Signal Interpreter Weapon (3) Scythe Scythe Inventory (6) Reinforced Ion Engine Medium Matter Pod (100) ECM Suite Improved Utility Shielding Peak State ------------ Power Reinforced Ion Engine Propulsion (None) Utility Small Storage Unit Advanced Signal Interpreter Improved Targeting Computer Weapon Improved Assault Rifle Scythe Scythe Inventory Medium Matter Pod ECM Suite Improved Utility Shielding [Rating: 17] Favorites ----------- Power Ion Engine Engine Ion Engine Propulsion Light Treads Treads Light Treads Wheel Wheel Utility Signal Interpreter Device ECM Suite Storage Small Storage Unit Processor Signal Interpreter Weapon Scythe Energy Gun Spread Laser Ballistic Gun Assault Rifle Launcher Grenade Launcher Slashing Weapon Scythe Build | -11 -10 -9 ------- Run | Scr Mat Mat Slots Evolved 2 | . . 2 Power . | . . . Propulsion . | . . . Utility 1 | . . 1 Weapon 1 | . . 1 Parts Attached 33 | 6 12 15 Power 2 | 1 . 1 Engine 2 | 1 . 1 Core . | . . . Reactor . | . . . Propulsion 8 | 2 5 1 Treads 7 | 2 5 . Leg . | . . . Wheel 1 | . . 1 Hover . | . . . Flight . | . . . Utility 10 | 1 3 6 Device 3 | . 1 2 Storage 3 | 1 . 2 Processor 4 | . 2 2 Hackware . | . . . Protection . | . . . Artifact . | . . . Weapon 13 | 2 4 7 Energy Gun 2 | . . 2 Energy Cannon . | . . . Ballistic Gun 5 | 2 1 2 Ballistic Cannon . | . . . Launcher 3 | . 3 . Special Weapon . | . . . Impact Weapon . | . . . Slashing Weapon 3 | . . 3 Piercing Weapon . | . . . Special Melee Weapon . | . . . Unidentified Prototypes 1 | . . 1 Parts Lost 9 | . 4 5 Power 1 | . . 1 Propulsion 3 | . 1 2 Utility 2 | . 1 1 Weapon 3 | . 2 1 Highest Loss Streak 5 | . 1 5 Average Slot Usage (%) 75 | . 88 64 Engine 8 | . 14 4 Treads 13 | . 23 4 Device 6 | . 2 10 Storage 9 | . 12 6 Processor 12 | . 10 13 Energy Gun 1 | . . 2 Ballistic Gun 10 | . 16 5 Launcher 3 | . 7 . Slashing Weapon 8 | . . 16 Naked Turns . | . . . Heaviest Build 14 | 12 14 14 Greatest Support 40 | 40 40 20 Greatest Overweight (x) 3 | . 3 3 Average Overweight (x) . | . . 1 Largest Inventory Capacity 6 | 6 6 6 Average Capacity 5 | 5 5 4 Most Carried 6 | . 6 4 Average Carried 3 | . 4 2 Final Capacity 6 | 6 4 6 Final Carried 4 | . 4 4 Class Distribution -------------------- 100% | Mutant Dominant Class ---------------- Mutant | -10/Materials Mutant | -9/Materials Resources | -11 -10 -9 ----------- Run | Scr Mat Mat Matter Collected 812 | 243 325 244 Remotely . | . . . Salvage Created 592 | . 394 198 Parts 40 | . 31 9 Haulers Intercepted . | . . . Recyclers Shooed . | . . . Parts Field Recycled . | . . . Retrieved Matter . | . . . Parts Self-Destructed . | . . . Prevented . | . . . Kills | -11 -10 -9 ------- Run | Scr Mat Mat Combat Hostiles Destroyed 10 | . 7 3 Melee 1 | . . 1 Guns 8 | . 6 2 AOE 1 | . 1 . Classes Destroyed 5 | . 4 1 Worker 1 | . . 1 Watcher 1 | . 1 . Grunt 1 | . 1 . Abomination 9 | . 6 3 Anomaly 9 | . 1 8 Best Kill Streak 2 | . 2 2 Combat Bots Only 2 | . 2 2 Max Kills in Single Turn 1 | . 1 1 Gunslinging . | . . . Exploded 1 | . 1 . Melee 1 | . . 1 Uniques/NPCs Destroyed . | . . . Combat | -11 -10 -9 -------- Run | Scr Mat Mat Damage Taken 1645 | . 744 901 Core 594 | . 186 408 Absorbed by Shields . | . . . Core Remaining (%) 62 | 100 25 . Volleys Fired 69 | . 42 27 Largest 2 | . 2 1 Hottest 65 | . 50 65 Shots Fired 95 | . 68 27 Gun 90 | . 63 27 Cannon . | . . . Launcher 5 | . 5 . Special . | . . . Kinetic 64 | . 63 1 Thermal 26 | . . 26 Explosive 5 | . 5 . Electromagnetic . | . . . Robot Hit Streak 17 | . 14 17 Robot Miss Streak 12 | . 8 12 Penetration Max . | . . . Secondary Targets . | . . . Shots Hit Robots 83 | . 43 40 Core Hits 45 | . 19 26 Critical Hits 2 | . . 2 Critical Kills . | . . . Critical Parts Destroyed 2 | . . 2 Melee Attacks 22 | . . 22 Impact . | . . . Slashing 22 | . . 22 Piercing . | . . . Sneak Attacks 10 | . . 10 Combat Hostiles . | . . . Follow-up Attacks 2 | . . 2 Damage Inflicted 2069 | . 561 1508 Guns 805 | . 469 336 Cannons . | . . . Explosions 92 | . 92 . Melee 1171 | . . 1171 Ramming 1 | . . 1 Kinetic 469 | . 469 . Thermal 336 | . . 336 Explosive 92 | . 92 . Electromagnetic . | . . . Impact . | . . . Slashing 1171 | . . 1171 Piercing . | . . . Highest Corruption 8 | . 8 5 Average Corruption 4 | . 5 3 Corruption Purged . | . . . Effects 18 | . 6 12 Message Errors 6 | . 3 3 Matter Fused 4 | . 2 2 Heat Flow Errors 2 | . 1 1 Energy Discharges 3 | . . 3 Parts Rejected 1 | . . 1 Targeting Errors 2 | . . 2 Overload Shots . | . . . Overflow Damage 187 | . . 187 Projectiles . | . . . Explosions . | . . . Melee 187 | . . 187 Knockbacks . | . . . Impact . | . . . Kinetic . | . . . Secondary . | . . . Self-Inflicted Damage 39 | . 39 . Shots 1 | . 1 . Rammed 1 | . . 1 Targets Rammed 1 | . . 1 Kicked . | . . . Crushed . | . . . Highest Temperature 952 | . 952 612 Average Temperature 245 | . 309 200 Received Heat Transfer 519 | . 234 285 Effects 26 | . 21 5 Shutdowns 3 | . 3 . Energy Bleed 1 | . 1 . Interference 3 | . 1 2 Matter Decay 3 | . 2 1 Short Circuit 2 | . 2 . Damage (minor) 4 | . 3 1 Damage (major) 9 | . 8 1 Damage (core) 1 | . 1 . Siege Activations . | . . . Robots Corrupted . | . . . Combat Hostiles . | . . . Parts Fried 1 | . . 1 Impact Corruptions . | . . . Robots Melted 1 | . . 1 Combat Hostiles . | . . . Parts Melted . | . . . Heat Transferred 104 | . . 104 Parts Sabotaged . | . . . Parts Stolen . | . . . Parts Stripped . | . . . Power Chain Reactions . | . . . Missiles Intercepted . | . . . Alert | -11 -10 -9 ------- Run | Scr Mat Mat Peak Influence 72 | . 72 20 Average Influence 10 | . 23 . Maximum Alert Level . | . . . Low Security (%) 100 | . . . Level 1 . | . . . Level 2 . | . . . Level 3 . | . . . Level 4 . | . . . Level 5 . | . . . High Security . | . . . Max Security . | . . . Squads Dispatched 20 | . 9 11 Investigation 4 | . 3 1 Extermination . | . . . Reinforcement 1 | . . 1 Assault 15 | . 6 9 Garrison . | . . . Intercept . | . . . Construction Impeded . | . . . Haulers Reinforced . | . . . Stealth | -11 -10 -9 --------- Run | Scr Mat Mat Distress Signals 3 | . 1 2 Communications Jammed . | . . . Distress Signals . | . . . Times Spotted 22 | . 12 10 Peak Tracking Total 6 | . 5 6 Tactical Retreats 1 | . 1 . Traps | -11 -10 -9 ------- Run | Scr Mat Mat Traps Triggered . | . . . Indirectly . | . . . Trap Hack Attempts . | . . . Triggered . | . . . Disarmed . | . . . Reprogrammed . | . . . Reused . | . . . Traps Extracted . | . . . Installed . | . . . Triggered . | . . . Machines | -11 -10 -9 ---------- Run | Scr Mat Mat Machines Disabled . | . . . Max in Single Turn . | . . . Machines Sabotaged . | . . . Garrisons Compromised . | . . . Overloaded Fab Kills . | . . . Fab Network Shutdowns . | . . . Hacking | -11 -10 -9 --------- Run | Scr Mat Mat Machines Accessed 2 | . 1 1 Terminals . | . . . Fabricators . | . . . Repair Stations 2 | . 1 1 Recycling Units . | . . . Scanalyzers . | . . . Garrison Access . | . . . Total Hacks 6 | . 3 3 Successful 4 | . 2 2 Failed 2 | . 1 1 Catastrophic . | . . . Database Lockouts . | . . . Manual . | . . . Terminals . | . . . Fabricators . | . . . Repair Stations 6 | . 3 3 Recycling Units . | . . . Scanalyzers . | . . . Garrison Access . | . . . Terminal Hacks . | . . . Fabricator Hacks . | . . . Repair Station Hacks 4 | . 2 2 Scan Component 4 | . 2 2 Recycling Unit Hacks . | . . . Scanalyzer . | . . . Garrison Access Hacks . | . . . Unauthorized Hacks . | . . . Terminals . | . . . Fabricators . | . . . Repair Stations . | . . . Recycling Units . | . . . Scanalyzers . | . . . Garrison Access . | . . . Data Cores Recovered . | . . . Used . | . . . Hacking Detections 1 | . . 1 Full Trace Events . | . . . Feedback Events . | . . . Feedback Blocked . | . . . Robot Schematics Acquired . | . . . Robots Built . | . . . Matter . | . . . Time . | . . . Total Robot Build Rating . | . . . Part Schematics Acquired . | . . . Parts Built . | . . . Matter . | . . . Time . | . . . Total Part Build Rating . | . . . Parts Repaired . | . . . Time . | . . . Parts Recycled . | . . . Recycled Matter . | . . . Retrieved Matter . | . . . Retrieved Components . | . . . Parts Scanalyzed . | . . . Part Schematics Acquired . | . . . Parts Damaged . | . . . Bothacking | -11 -10 -9 ------------ Run | Scr Mat Mat Used RIF Installer . | . . . Robots Hacked . | . . . Non-combat . | . . . Combat . | . . . Robot Hacks Applied . | . . . Relay Couplers Released . | . . . Robots Rewired . | . . . Allies Hacked . | . . . Hacks Repelled . | . . . Allies | -11 -10 -9 -------- Run | Scr Mat Mat Total Allies . | . . . Largest Group . | . . . Highest-Rated Group . | . . . Highest-Rated Ally . | . . . Total Orders . | . . . Ally Attacks . | . . . Total Damage . | . . . Kills . | . . . Allies Corrupted . | . . . Allies Melted . | . . . Intel | -11 -10 -9 ------- Run | Scr Mat Mat Robot Analysis Total . | . . . Derelict Logs Recovered . | . . . Drone Launches . | . . . Drone Recoveries . | . . . Exploration | -11 -10 -9 ------------- Run | Scr Mat Mat Turns Passed 1711 | 118 755 838 Spaces Moved 744 | 75 334 335 Core 226 | 9 21 196 Treads 496 | 66 313 117 Legs . | . . . Wheels 22 | . . 22 Hover . | . . . Flight . | . . . Fastest Speed 50 | 50 150 80 Average Speed 165 | 146 162 172 Slowest Speed 200 | 160 200 200 Overloaded Moves . | . . . Propulsion Burnouts . | . . . Robots Hopped . | . . . Cave-ins Triggered . | . . . Exploration Rate (%) 29 | 5 58 25 Regions Visited 2 Branch Regions . Pre-discovered Areas . | . . . Known Exits Taken . | . . . Unknown Exits Taken 2 | 1 1 . Scrap Searched . | . . . Spaces Dug . | . . . Terrain Destroyed 18 | . 18 . Melee . | . . . Projectile . | . . . AOE 18 | . 18 . Actions | -11 -10 -9 --------- Run | Scr Mat Mat Total 972 | 80 396 496 Wait 89 | . . 89 Move 742 | 74 333 335 Hop . | . . . Pick Up 15 | . 8 7 Fast Attach 18 | 6 6 6 Attach 10 | . 4 6 Detach 3 | . 1 2 Swap 5 | . 2 3 Drop 2 | . . 2 Fire 69 | . 42 27 Melee 18 | . . 18 Ram . | . . . Kick . | . . . Crush 1 | . . 1 Escape Stasis . | . . . Rewire . | . . . Trap . | . . . Miscellaneous . | . . . Route ------- -11/Scrapyard -10/Materials -9/Materials History --------- Turn | Location | Event 5 | -11/Scrapyard | Discovered new exit (range 16) 119 | -11/Scrapyard | Entered Materials 311 | -10/Materials | Build established: Mutant 641 | -10/Materials | Discovered new exit (range 13) 750 | -10/Materials | Identified exit to Mines 757 | -10/Materials | Core integrity fell below 50% 847 | -10/Materials | Discovered new exit (range 16) 874 | -10/Materials | Entered another Materials area 874 | -9/Materials | Evolved 2 slots: Utility x1, Weapon x1 1263 | -9/Materials | Lost 5 parts (1p2n1u1w) 1675 | -9/Materials | Core integrity fell below 50% 1704 | -9/Materials | Core integrity fell below 20% 1712 | -9/Materials | Destroyed by Lesser Abomination with Small Laser Last Messages --------------- 01656_ Acquired 11 matter. 01657_ Lesser Abomination feeds off Hungry Anomaly, taking Wheel. 01658_ Sneak attack on Warp Anomaly. 01658_ Warp Anomaly destroyed. 01661_ Hungry Anomaly eats Lgt. Ion Engine. 01663_ Acquired 11 matter. 01679_ System corrupted: Imp. Assault Rifle rejected. 01680_ Acquired 8 matter. 01683_ ALERT: Dispatching additional forces to engage threats. 01693_ Hungry Anomaly eats Imp. Assault Rifle. 01694_ Lesser Abomination feeds off Hungry Anomaly, taking Lgt. Ion Engine. 01698_ U-05 Engineer destroyed. 01701_ Sneak attack on Disintegrating Anomaly. 01701_ Disintegrating Anomaly destroyed. 01702_ Lesser Abomination spits out Lgt. Ion Engine. 01702_ Lesser Abomination absorbs Lgt. Ion Engine. 01702_ Hungry Anomaly eats Lgt. Ion Engine. 01706_ Frozen by Ice Anomaly. 01709_ Hungry Anomaly eats Terrain Scan Processor. Map ----- +----------------------------------------------------+ | ???????????????????????????????????? | | ???????????????????????????????????? | | ???????????????????????????????????? | | ???????????????????????????????????? | | ???????????????????????????????????? | | ???????????????????????????????????? | | ???????????????????????????????????? | | ???????????????????????????????????? | | ???????????????????????????????????? | | ???????????????????????????????????? | | ???????????????????????????????????? | | ???????????????????????????????????? | | ??????????????????? ??????????????? | | ?????????????????? " ????????????? | | ????????????????## + "??????????? | | ???????????????? " # "??????????? | | ??????????????###" # ??????????? | | ??????????#### ## ##""??????????? | | ??????#####;;##"# " #??????????? | | ??????# # ???????????? | | # ????# T ?????????????? | | ?? %?# ???????????????? | | ??""" + %;;;#""# ?????????????????? | | ???"" ; ; # #??????????????????? | | ??????# ; # ###????????????????? | | ??????# ;@n#""#"########?????????? | | ??????# "# #?????????? | | ??????# AA ;# #???????### | | ??????# ;; #???????# | | ??????# % #;;; ;; #####??## | | ??????# %%## ; ;; "## ### # | | ??????# = ?# ; ;; " " | | ??????# ??##; ;;;;;;;;""""""""" | | ??????# %???## A " | | ??????# ????# %"%"""""""""" | | ??????#%?????# " " | | ??????+ ?????######;;;;""""""""""" | | ??????#??????? " " % | | ??????????? # """"""""" | | ??????????? # " " | | ??????????# % # ##### % | | ??????????# # % #???# | | ??????????# # #???# "" | | ??????????+ # #???# """ | | ??????????# # +???#%""" | | ???????????? + #???# """ | | ???????????????"??### ######???? %"" | | ????????????????????##?????????? ! | | ????????????????????????????????#### | | ???????????????????????????????????? | +----------------------------------------------------+ Best States ------------- Heat Dissipation 38 Energy Generation 12 Energy Capacity 265 Matter Stores 370 Matter Capacity 400 Sight Range 16 Terrain Scan Density 10 ECM Strength 1 Evasion (%) 42 Targeting Accuracy 6 Recoil Reduction 2 Item Schematics ----------------- None Robot Schematics ------------------ None Fabricated ------------ Nothing Alien Tech Used ----------------- None Achievements -------------- None Challenges ------------ None Game ------ Seed TrapPotentialPerforator Manual? 0 Play Time 00:21:45 Cumulative 5.1 hours Start 2019.10.31 @ 21:02:29 End 2019.10.31 @ 21:23:03 Sessions 1 Manual Loads 0 Difficulty Rogue Special Mode Halloween2019/Abominations Game No. 19 Rogue 19 Adventurer 0 Explorer 0 Win Type - Total 0 Types 0/0/0/0/0/0/0 Lore% 1 Gallery% 10 Achievement% 5 Wizard Run 0 Options --------- ASCII 0 Keyboard 1 Movement Numpad Keybinds 0 Fullscreen 1 Font 18/SmallcapsGlow Map View 76x50 Tactical HUD 1 Map Filters NONE Filters NONE Steam 1 RUN: 9e6cfe27-ccd5-4fdf-8345-547e5400058d